{"text_format":"1","workbook":"xlsx","n_sheets":6,"sheets":["index","Tabelle1","Tabelle2","inverter","pv-module","battery"],"not_rendered":{"charts":0,"images":2,"macros":1,"external_links":0,"defined_names":1,"comments":0,"pivot_tables":0},"unopened":[],"bounds":{"document_bytes":16777216,"sheet_cells":100000,"rows_first":2000,"rows_last":500,"rows_between":2000,"halvings":0,"cell_chars":16384,"cell_head_chars":4096},"cells_cut":0,"cells_raw":0,"read":"whole","date_system":"1900"}

{"sheet":"index","index":0,"n_rows":0,"n_cols":0,"rows_kept":0,"cut":false,"hidden":false,"merged":[]}

{"sheet":"Tabelle1","index":1,"n_rows":4,"n_cols":10,"rows_kept":4,"cut":false,"hidden":false,"merged":[]}
[]
[]
[]
[null,null,null,null,null,null,null,null,null,"Inverter sizing"]

{"sheet":"Tabelle2","index":2,"n_rows":49,"n_cols":15,"rows_kept":49,"cut":false,"hidden":true,"merged":[]}
[]
[]
[]
[null,null,null,null,null,null,null,null,"voc","vmp","isc","imp"]
["nb of modules",{"$f":"index!J12","v":0},null,null,null,"Module",{"$f":"index!J10","v":0},{"$f":"_xlfn._xlws.FILTER('pv-module'!F9:J15,'pv-module'!E9:E15=G5)","v":{"$error":"#VALUE!"}}]
["system power",{"$f":"H5*B5","v":{"$error":"#VALUE!"}}]
["system voltage ",{"$f":"I5*B5","v":0}]
["system current ",{"$f":"K5*B5","v":0},null,null,null,null,null,"nominal power kw","voltage","current","Dimension"]
[null,null,null,null,null,"Wechselrichter",{"$f":"kopp_wr2[[Bezeichnung]:[Max. Eingangsstrom '[A']:]]","v":"KOPP.Kuara-6.0-2-T"},6,1100,14,{"$f":"(($B$34)/(H9*1000))","v":{"$error":"#VALUE!"}},null,{"$f":"IF((index!J12>1)*(index!J12<15),(Tabelle2!E36:E37),(_xlfn._xlws.FILTER(Tabelle2!G9:G22,(Tabelle2!K9:K22>0.95)*(Tabelle2!K9:K22<1.4),\"change the number of inverters\")))","v":{"$error":"#VALUE!"}},{"$f":"IF((index!J12>1)*(index!J12<15),\"\",_xlfn._xlws.FILTER(Tabelle2!G9:G22,(Tabelle2!K9:K22>0.7)*(Tabelle2!K9:K22<0.95)+(Tabelle2!K9:K22>1.4)*(Tabelle2!K9:K22<1.6)))","v":{"$error":"#VALUE!"}},{"$f":"_xlfn._xlws.FILTER(G9:G22,(K9:K22>0)*(K9:K22<0.7)+(K9:K22>1.6))","v":{"$error":"#VALUE!"}}]
[null,null,null,null,null,null,"KOPP.Kuara-8.0-2-T",8,1100,14,{"$f":"(($B$34)/(H10*1000))","v":{"$error":"#VALUE!"}}]
[null,null,null,null,null,null,"KOPP.Kuara-10.0-2-T",10,1100,14,{"$error":"#VALUE!"}]
[null,null,null,null,null,null,"KOPP.Kuara-12.0-2-T",12,1100,14,{"$error":"#VALUE!"}]
[null,null,null,null,null,null,"KOPP Kuara 15.0-2.T",15,1100,28,{"$error":"#VALUE!"}]
[null,null,null,null,null,null,"KOPP Kuara 20.0-2.T",20,1100,28,{"$error":"#VALUE!"}]
[null,null,null,null,null,null,"KOPP Kuara 25.0-2-T",25,1100,28,{"$error":"#VALUE!"}]
[null,null,null,null,null,null,"KOPP.Kuara 6.0-3-H",6,1000,14,{"$error":"#VALUE!"}]
[null,null,null,null,null,null,"KOPP.Kuara 8.0-3-H",8,1000,26,{"$error":"#VALUE!"}]
[null,null,null,null,null,null,"KOPP.Kuara 10.0-3-H",10,1000,26,{"$error":"#VALUE!"}]
[null,null,null,null,null,null,"KOPP.Kuara 12.0-3-H",12,1000,26,{"$error":"#VALUE!"}]
[]
[]
[]
[]
["Inverter Mppt",{"$f":"_xlfn._xlws.FILTER(inverter!K4:K14,inverter!E4:E14=G25)","v":{"$error":"#VALUE!"}},null,null,null,"number of inverters"]
["Strings pro MPP-Tracker:","Vmpp Min","Vmpp Max","Imax",null,{"$f":"index!C27","v":0},{"$f":"index!G24","v":0},"Numbers of Modules",{"$f":"B5/F25","v":{"$error":"#DIV/0!"}}]
[{"$f":"_xlfn._xlws.FILTER(inverter!L4:N14,inverter!E4:E14=G25)","v":{"$error":"#VALUE!"}},null,null,{"$f":"_xlfn._xlws.FILTER(kopp_wr2[Max. Eingangsstrom '[A']:],Tabelle2!G25=kopp_wr2[Bezeichnung])","v":{"$error":"#VALUE!"}},null,null,null,"mppt 1",{"$f":"I25-I27","v":{"$error":"#DIV/0!"}}]
[null,null,null,null,null,null,null,"mppt 2",{"$f":"IF( Tabelle2!B24>=2,QUOTIENT(Tabelle2!I25,2),0)","v":{"$error":"#VALUE!"}}]
[]
[null,null,null,null,null,null,null,"Numbers of Modules",{"$f":"IF( index!C27>=2,B5/F25,0)","v":0}]
[null,null,null,null,null,null,null,"mppt 1",{"$f":"I29-I31","v":{"$error":"#VALUE!"}}]
[null,null,null,null,null,null,null,"mppt 2",{"$f":"IF( Tabelle2!B24>=2,QUOTIENT(Tabelle2!I29,2),0)","v":{"$error":"#VALUE!"}}]
[]
["requierments per inverter",null,null,null,null,null,null,"Numbers of Modules",{"$f":"IF( index!C27>=3,B5/F25,0)","v":0}]
["inverter size W",{"$f":"B6/F25","v":{"$error":"#VALUE!"}},null,null,null,null,null,"mppt 1",{"$f":"I33-I35","v":{"$error":"#VALUE!"}}]
["system voltage V",{"$f":"(J5*B5)/(F25*B24)","v":{"$error":"#VALUE!"}},null,null,null,null,null,"mppt 2",{"$f":"IF( Tabelle2!B24>=2,QUOTIENT(Tabelle2!I33,2),0)","v":{"$error":"#VALUE!"}}]
["system current I",{"$f":"L5*B37","v":0},null,null,{"$f":"IF( (index!J12>1)*(index!J12<15),Tabelle2!G12,\"\")","v":""}]
["nb of strings per mppt",1,null,null,{"$f":"IF( (index!J12>1)*(index!J12<15),Tabelle2!G19,\"\")","v":""},null,null,"Numbers of Modules",{"$f":"IF( index!C27>=4,B5-L35,0)","v":0}]
[null,null,null,null,null,null,null,"mppt 1",{"$f":"I37-I39","v":{"$error":"#VALUE!"}}]
[null,null,null,null,null,null,null,"mppt 2",{"$f":"IF( Tabelle2!B24>=2,QUOTIENT(Tabelle2!I37,2),0)","v":{"$error":"#VALUE!"}}]
[]
[]
[]
[]
[]
[{"$f":"_xlfn._xlws.FILTER(Tabelle2!K9:K22,index!$G$24=Tabelle2!G9:G22)","v":{"$error":"#VALUE!"}},0.9]
[0.02,0.1]
[{"$f":"2.3-A45-A46","v":{"$error":"#VALUE!"}},0.2]
[null,0.2]
[null,0.9]

{"sheet":"inverter","index":3,"n_rows":14,"n_cols":14,"rows_kept":14,"cut":false,"hidden":true,"merged":[]}
[]
[]
[null,null,null,"Artikelnummer","Bezeichnung","AC output KW","Max.DC Spannung [V]:","Max. Eingangsstrom [A]:","Gleichstrom-Leistung [W]","Anlaufspannung [V]","Anzahl der MPP-Tracker:","Strings pro MPP-Tracker:","MPPT Spannung min (Volllast)\n[Vdc]:","MPPT Spannung max(Volllast)"]
[null,null,null,432506037,"KOPP.Kuara-6.0-2-T",6,1100,14,9000,140,2,2,230,850]
[null,null,null,432508039,"KOPP.Kuara-8.0-2-T",8,1100,14,12000,140,2,2,300,850]
[null,null,null,432510038,"KOPP.Kuara-10.0-2-T",10,1100,14,15000,140,2,2,380,850]
[null,null,null,432512030,"KOPP.Kuara-12.0-2-T",12,1100,14,18000,140,2,2,455,850]
[null,null,null,432515002,"KOPP Kuara 15.0-2.T",15,1100,28,22500,140,2,4,275,850]
[null,null,null,432520004,"KOPP Kuara 20.0-2.T",20,1100,28,30000,140,2,4,370,850]
[null,null,null,432525009,"KOPP Kuara 25.0-2-T",25,1100,28,37500,140,2,4,460,850]
[null,null,null,433406004,"KOPP.Kuara 6.0-3-H",6,1000,14,9000,160,2,2,250,800]
[null,null,null,433408006,"KOPP.Kuara 8.0-3-H",8,1000,26,10400,160,2,3,240,800]
[null,null,null,433410005,"KOPP.Kuara 10.0-3-H",10,1000,26,15000,160,2,3,280,800]
[null,null,null,433412007,"KOPP.Kuara 12.0-3-H",12,1000,26,13000,160,2,3,320,800]

{"sheet":"pv-module","index":4,"n_rows":15,"n_cols":10,"rows_kept":15,"cut":false,"hidden":true,"merged":[]}
[]
[]
[]
[]
[]
[]
[]
[null,null,null,"Artikelnummer","Bezeichnung","Maximale Leistung bei STC (Pmp):","voc","Maximale Leistung Spannung (Vmp):","Isc","Maximale Leistung\nStrom (Imp):\n"]
[null,null,null,431238504,"KOPP-385Wp Black frame",385,41.78,35.04,11.53,10.99]
[null,null,null,431240008,"KOPP-405Wp",405,37.229999999999997,31.21,13.87,12.98]
[null,null,null,431241016,"KOPP 410Wp",410,37.32,31.45,13.95,13.04]
[null,null,null,431241504,"KOPP 410Wp Black Frame",410,37.32,31.45,13.95,13.04]
[null,null,null,431341507,"Kopp-410Wp Full Black",410,44.9,37.799999999999997,11.47,10.85]
[null,null,null,431343011,"Kopp-430Wp",430,38.5,31.9,14.19,13.47]
[null,null,null,431343509,"Kopp-430Wp Black Frame",430,38.5,31.9,14.19,13.47]

{"sheet":"battery","index":5,"n_rows":10,"n_cols":4,"rows_kept":10,"cut":false,"hidden":true,"merged":[]}
[]
[]
[]
[null,null,null,"battery Leistung"]
[null,null,null,"NO"]
[null,null,null,"Kopp Kantana 8,7 Kwh battery"]
[null,null,null,"Kopp Kantana 11,6 Kwh battery "]
[null,null,null,"Kopp Kantana 14,5 Kwh battery"]
[null,null,null,"Kopp Kantana 17,4 Kwh battery "]
[null,null,null,"Kopp Kantana 20,3 Kwh battery "]